bitfinex/quotes_ETHUSD_20250603
["timestamp","ask_amount","ask_price","bid_price","bid_amount"]
[1748915487273,0.9386,2646.5,2646.0,6.84206476]
[1748915487570,3.77861579,2646.5,2646.3,6.84206476]
[1748915487732,4.127,2646.6,2646.3,6.84206476]
[1748915488227,0.4126,2646.9,2646.4,0.9853]
[1748915488436,4.127,2646.8,2646.6,6.84206476]
[1748915488654,7.90522036,2646.8,2646.6,6.84206476]
[1748915488815,0.4126,2646.9,2646.6,6.84206476]
[1748915489151,4.19073718,2646.9,2646.6,6.84206476]
[1748915489349,3.77815088,2646.8,2646.6,6.84206476]
[1748915489654,3.77838242,2646.7,2646.4,0.9853]
[1748915489814,3.77800445,2646.9,2646.6,6.84206476]
[1748915490014,3.77800445,2646.9,2645.8,5.289]
[1748915490015,4.127,2646.8,2646.1,0.9853]
[1748915490263,3.77896562,2646.3,2645.9,7.82736476]
[1748915490415,7.9057572,2646.4,2645.9,7.82736476]
[1748915490615,1.16843933,2646.3,2645.9,11.60679677]
[1748915490866,3.77838527,2646.7,2646.2,6.84206476]
[1748915491034,4.126,2646.4,2646.2,6.84206476]
[1748915491751,4.71673822,2646.9,2646.2,6.84206476]
[1748915491954,3.77759885,2647.2,2646.8,6.84206476]
[1748915492254,3.77771901,2647.1,2646.8,6.84206476]
[1748915492454,4.126,2647.0,2646.8,6.84206476]
[1748915492626,7.90388487,2647.0,2646.8,6.84206476]
[1748915492952,3.77800445,2646.9,2646.5,6.84206476]
[1748915493363,7.90392374,2647.0,2646.5,6.84206476]
[1748915493522,1.16816433,2646.9,2646.5,6.84206476]
[1748915493856,4.126,2646.9,2646.8,6.84206476]
[1748915494516,3.77820752,2646.8,2646.5,6.84206476]
[1748915494716,3.77837931,2646.7,2646.5,6.84206476]
[1748915495020,3.77815861,2646.8,2646.5,6.84206476]
[1748915495254,0.79041586,2646.7,2646.5,6.84206476]
[1748915495449,4.126,2646.6,2646.5,6.84206476]
[1748915496766,4.125,2646.6,2646.5,10.62055819]
[1748915497058,4.125,2646.6,2646.5,10.62064023]
[1748915497263,4.6256149,2647.2,2646.5,10.62064023]
[1748915497264,4.62564866,2647.2,2646.6,4.70575474]
[1748915497463,4.68009487,2647.1,2646.8,6.84206476]
[1748915497851,3.77788241,2647.0,2646.8,6.84206476]
[1748915498175,4.68009487,2647.1,2646.6,0.9274]
[1748915498476,4.68009487,2647.1,2646.5,6.84206476]
[1748915498779,3.77798655,2647.0,2646.5,6.84206476]
[1748915499094,3.77827451,2646.8,2646.5,6.84206476]
[1748915499262,4.125,2646.7,2646.3,3.77883919]
[1748915499567,4.125,2646.7,2646.5,6.84206476]
[1748915500334,1.80240814,2647.0,2646.5,6.84206476]
[1748915500669,4.125,2646.9,2646.8,6.84206476]
[1748915500964,7.90300445,2646.9,2646.8,6.84206476]
[1748915501663,4.125,2646.9,2646.8,6.84206476]
[1748915503073,3.77759228,2647.2,2646.9,0.96]
[1748915503369,3.77763389,2647.2,2646.9,0.96]
[1748915503576,1.16789665,2647.2,2646.6,7.81946476]
[1748915503777,4.124,2647.1,2646.6,7.81946476]
[1748915503977,4.124,2647.1,2646.9,6.84206476]
[1748915504280,3.77732493,2647.4,2646.9,6.84206476]
[1748915504467,7.90144905,2647.3,2646.9,6.84206476]
[1748915505083,3.77758428,2647.2,2646.9,6.84206476]
[1748915505264,3.7775763,2647.2,2646.9,6.84206476]
[1748915505462,4.124,2647.1,2646.9,6.84206476]
[1748915505948,0.02,2647.9,2647.0,0.9556]
[1748915506189,3.77695007,2647.7,2647.5,0.9556]
[1748915506353,3.77712292,2647.6,2647.4,6.84206476]
[1748915506548,2.13446286,2647.7,2647.2,0.9556]
[1748915506766,3.77742904,2647.4,2647.1,6.84206476]
[1748915506972,3.77729092,2647.4,2647.1,6.84206476]
[1748915507267,3.7775385,2647.3,2647.1,6.84206476]
[1748915507648,3.7775385,2647.3,2647.0,0.9556]
[1748915507649,3.7775763,2647.2,2647.0,0.9556]
[1748915507858,4.87948967,2647.2,2647.0,0.9556]
[1748915508085,8.65715485,2647.2,2646.8,6.84206476]
[1748915508293,3.77800445,2646.9,2646.8,6.84206476]
[1748915508505,3.77800445,2646.9,2646.5,6.84206476]
[1748915508506,3.77828107,2646.8,2646.5,6.84206476]
[1748915508808,3.77841791,2646.7,2646.5,6.84206476]
[1748915509015,4.123,2646.6,2646.2,6.84206476]
[1748915509286,3.77908812,2646.2,2645.9,6.84206476]
[1748915509493,4.123,2646.1,2645.9,6.84206476]
[1748915510256,3.77891822,2646.3,2645.9,6.84206476]
[1748915510589,7.90201286,2646.2,2645.9,6.84206476]
[1748915510991,4.123,2646.2,2645.9,6.84206476]
[1748915511691,3.77927006,2646.1,2645.9,6.84206476]
[1748915512203,3.77928949,2646.0,2645.9,6.84206476]
[1748915512382,8.80112819,2646.2,2645.9,6.84206476]
[1748915512690,3.77925634,2646.1,2645.9,6.84206476]
[1748915513604,3.77928949,2646.0,2645.9,6.84206476]
[1748915513913,3.77952358,2645.9,2645.5,6.84206476]
[1748915514103,4.123,2645.8,2645.5,6.84206476]
[1748915514911,4.73785899,2645.7,2645.2,6.84206476]
[1748915515108,0.958,2645.7,2645.5,6.84206476]
[1748915515696,3.7798609,2645.6,2645.5,6.84206476]
[1748915515876,0.958,2645.7,2645.5,6.84206476]
[1748915516076,0.88606151,2645.6,2645.5,6.84206476]
[1748915516379,4.66592241,2645.6,2645.5,6.84206476]
[1748915517417,3.78002204,2645.5,2645.4,6.84206476]
[1748915517599,3.78025913,2645.4,2645.2,6.84206476]
[1748915517799,4.123,2645.3,2645.2,6.84206476]
[1748915518809,7.90328957,2645.3,2645.2,6.84206476]
[1748915519133,8.31558957,2645.3,2645.2,6.84206476]
[1748915520239,8.31563785,2645.3,2645.1,0.02]
[1748915520437,4.70973248,2645.2,2645.1,0.02]
[1748915522706,8.83273248,2645.2,2645.1,0.02]
[1748915522913,10.13526533,2645.2,2645.1,0.02]
[1748915524304,3.7798639,2645.6,2645.1,6.86206476]
[1748915524636,4.124,2645.7,2645.5,6.84206476]
[1748915524855,4.123,2645.7,2645.5,6.84206476]
[1748915525055,7.90283418,2645.7,2645.3,0.981]
[1748915525239,4.91324913,2645.7,2645.1,0.02]
[1748915525406,3.77989054,2645.6,2645.3,6.84206476]
[1748915525902,8.69298048,2645.7,2645.3,6.84206476]
[1748915526126,3.78014666,2645.4,2645.3,6.84206476]
[1748915526325,7.90314666,2645.4,2645.3,6.84206476]
[1748915526626,3.78034979,2645.3,2645.1,0.02]
[1748915527170,3.78043248,2645.2,2645.1,0.02]
[1748915527844,3.78035089,2645.3,2645.1,0.02]
[1748915528559,3.78043248,2645.2,2645.1,0.02]
[1748915528960,3.78034655,2645.3,2645.1,0.02]
[1748915529165,5.17152635,2645.3,2645.1,0.02]
[1748915529978,3.78043248,2645.2,2645.1,0.02]
[1748915530146,1.3911798,2645.3,2645.1,0.02]
[1748915530472,4.123,2645.2,2645.1,0.02]
[1748915530634,7.90343248,2645.2,2645.1,0.02]
[1748915530835,8.85443248,2645.2,2645.1,0.02]
[1748915531062,4.73143248,2645.2,2645.1,0.02]
[1748915531268,8.85443248,2645.2,2645.1,0.02]
[1748915531452,10.1179084,2645.2,2645.1,0.02]
[1748915532663,10.6679084,2645.2,2645.1,0.02]
[1748915534369,1.4943,2644.5,2644.1,0.02]
[1748915534553,3.78186218,2644.2,2644.1,0.02]
[1748915534769,4.95052081,2644.2,2644.1,0.02]
[1748915535553,1.16865863,2644.2,2644.1,0.02]
[1748915535737,1.16865863,2644.2,2644.1,6.86206476]
[1748915535738,7.90486218,2644.2,2644.1,6.86206476]
[1748915535935,0.9443,2644.5,2644.1,6.86206476]
[1748915536276,1.26347592,2645.2,2644.4,6.84206476]
[1748915536277,2.20777592,2645.2,2644.4,6.84206476]
[1748915536570,0.3689811,2645.9,2644.9,6.84206476]
[1748915536571,0.9443,2645.5,2644.9,6.84206476]
[1748915536769,3.78042375,2645.3,2645.2,6.84206476]
[1748915537085,3.7806641,2645.1,2644.9,6.84206476]
[1748915537300,4.123,2645.4,2644.9,6.84206476]
[1748915537568,3.78071833,2645.0,2644.9,6.84206476]
[1748915538244,3.78071833,2645.0,2644.3,3.78165737]
[1748915538245,2.11271671,2645.0,2644.6,6.84206476]
[1748915538590,7.90387314,2644.9,2644.6,6.84206476]
[1748915538786,5.0673,2644.8,2644.1,0.02]
[1748915538967,3.7811472,2644.7,2644.1,0.02]
[1748915539278,3.78186218,2644.2,2644.1,0.02]
[1748915539480,7.90486218,2644.2,2644.1,0.02]
[1748915539835,4.123,2644.2,2644.1,0.02]
[1748915541361,7.90486218,2644.2,2644.1,0.02]
[1748915542455,4.123,2644.2,2644.1,0.02]
[1748915545405,7.90486218,2644.2,2644.1,0.02]
[1748915545889,4.123,2644.2,2644.1,0.02]
[1748915547200,7.90486218,2644.2,2644.1,0.02]
[1748915547402,9.07350947,2644.2,2644.1,0.02]
[1748915550319,10.56250947,2644.2,2644.1,0.02]
[1748915551983,10.56150947,2644.2,2644.1,0.02]
[1748915552230,4.67549297,2643.2,2643.1,0.02]
[1748915552442,8.79749297,2643.2,2643.1,0.02]
[1748915552621,10.05555811,2643.2,2643.1,0.02]
[1748915552946,4.74784826,2644.0,2643.1,0.9104]
[1748915553089,3.78324565,2643.3,2643.1,0.02]
[1748915553426,7.90529297,2643.2,2643.1,0.02]
[1748915553924,0.9657,2644.0,2643.2,0.8904]
[1748915554127,3.78243437,2643.8,2643.7,6.84206476]
[1748915554431,5.04767694,2643.8,2643.7,6.84206476]
[1748915554743,5.04767694,2643.8,2643.1,0.02]
[1748915554744,3.78299296,2643.5,2643.1,6.86206476]
[1748915554889,1.26524257,2643.8,2643.4,6.84206476]
[1748915555199,7.90463188,2643.7,2643.5,0.9002]
[1748915555700,3.78272053,2643.6,2643.5,0.9002]
[1748915555901,3.78272053,2643.6,2643.4,6.84206476]
[1748915556227,7.90463965,2643.7,2643.4,6.84206476]
[1748915556518,3.78272992,2643.6,2643.4,6.84206476]
[1748915556725,7.90486362,2643.5,2643.4,6.84206476]
[1748915557183,9.07360823,2643.5,2643.4,6.84206476]
[1748915558729,3.78264156,2643.7,2643.4,6.84206476]
[1748915559051,7.90486362,2643.5,2643.4,6.84206476]
[1748915560033,3.78329297,2643.2,2643.1,6.86206476]
[1748915560259,7.90529297,2643.2,2643.1,6.86206476]
[1748915561061,4.122,2643.2,2643.1,6.86206476]
[1748915564966,3.78288656,2643.5,2643.1,6.86206476]
[1748915565124,7.90400855,2643.4,2643.1,6.86206476]
[1748915566039,3.78314985,2643.3,2643.1,6.86206476]
[1748915566238,7.90429297,2643.2,2642.7,3.05224344]
[1748915566449,7.90429297,2643.2,2643.1,6.84206476]
[1748915566638,4.121,2643.2,2643.1,6.84206476]
[1748915567937,7.90429297,2643.2,2643.1,6.84206476]
[1748915568469,4.121,2643.2,2643.1,6.84206476]
[1748915571981,0.9317,2644.0,2643.1,6.84206476]
[1748915572183,3.781946,2644.2,2643.8,6.84206476]
[1748915572485,3.78217823,2644.0,2643.8,6.84206476]
[1748915573367,4.12,2643.9,2643.8,6.84206476]
[1748915573862,4.71330292,2644.4,2643.8,6.84206476]
[1748915574066,3.78204513,2644.1,2643.8,6.84206476]
[1748915574268,3.78296311,2643.5,2642.9,3.78360807]
[1748915574446,7.90296311,2643.5,2643.3,0.84489886]
[1748915574769,4.12,2643.5,2643.3,1.48359886]
[1748915576377,4.12,2643.5,2643.3,0.84489886]
[1748915576676,3.78319438,2643.3,2643.0,6.84206476]
[1748915577472,3.78307111,2643.4,2643.0,6.84206476]
[1748915577769,3.7831876,2643.3,2643.0,6.84206476]
[1748915577935,3.78338348,2643.2,2643.0,6.84206476]
[1748915578137,3.78304682,2643.4,2643.0,6.84206476]
[1748915578338,0.79030468,2643.4,2643.0,6.84206476]
[1748915578581,7.90292497,2643.5,2643.3,6.84206476]
[1748915578739,4.119,2643.4,2643.3,6.84206476]
[1748915580984,4.75138318,2643.9,2643.3,6.84206476]
[1748915581188,0.9501,2644.2,2643.6,6.84206476]
[1748915581344,0.9501,2644.2,2642.8,16.889]
[1748915581345,4.119,2644.2,2644.0,6.84206476]
[1748915581540,0.50691,2644.2,2644.0,6.84206476]
[1748915581794,7.90072462,2644.3,2644.0,6.84206476]
[1748915582096,4.118,2644.2,2644.0,6.84206476]
[1748915582246,3.78200521,2644.1,2644.0,6.84206476]
[1748915582477,7.89992121,2644.2,2644.0,6.84206476]
[1748915582817,0.9366,2644.8,2644.0,11.61206476]
[1748915582987,3.78101702,2644.8,2644.6,6.84206476]
[1748915583186,0.3801017,2644.8,2644.6,6.84206476]
[1748915583513,4.138,2644.9,2644.7,0.6387]
[1748915583726,0.02,2644.9,2644.7,0.6387]
[1748915583873,0.02,2644.9,2644.7,0.67650743]
[1748915584076,0.02,2644.9,2644.7,0.6387]
[1748915584676,3.80098236,2644.9,2644.7,0.6387]
[1748915584876,4.55915049,2644.9,2644.7,0.6387]
[1748915585082,3.7811472,2644.7,2644.6,6.84206476]
[1748915585782,8.67708442,2644.9,2644.6,6.84206476]
[1748915585987,0.77816813,2644.9,2644.6,6.84206476]
[1748915586236,4.118,2644.8,2644.6,6.84206476]
[1748915587098,7.91787351,2644.9,2644.6,6.84206476]
[1748915587283,4.137,2644.9,2644.6,6.84206476]
[1748915588237,0.02,2644.9,2644.8,0.6387]
[1748915589501,0.02,2644.9,2644.6,6.84206476]
[1748915589706,3.80096017,2644.9,2644.6,6.84206476]
[1748915589906,3.78103999,2644.8,2644.6,6.84206476]
[1748915590121,4.68378334,2644.9,2644.6,6.84206476]
[1748915591620,4.116,2644.8,2644.4,0.6387]
[1748915591944,4.116,2644.8,2644.1,1.154]
[1748915591945,4.116,2644.8,2644.2,6.84206476]
[1748915592256,3.78157085,2644.5,2644.2,6.84206476]
[1748915592548,7.89757085,2644.5,2644.2,6.84206476]
[1748915592911,7.89757085,2644.5,2644.0,0.6387]
[1748915592912,7.89743673,2644.5,2644.0,0.6387]
[1748915593113,3.78184243,2644.3,2644.0,0.6387]
[1748915593314,4.115,2644.2,2643.8,7.48076476]
[1748915593522,3.78200521,2644.1,2643.8,6.84206476]
[1748915593724,3.78227306,2644.0,2643.6,0.6387]
[1748915593942,3.78200521,2644.1,2643.6,0.6387]
[1748915594137,1.16794534,2644.3,2643.5,6.84206476]
[1748915594138,7.89729332,2643.9,2643.5,6.84206476]
[1748915594351,3.78243437,2643.8,2643.5,6.84206476]
[1748915594554,4.90472933,2643.9,2643.5,6.84206476]
[1748915594925,0.9549,2644.4,2643.8,6.84206476]
[1748915595136,4.115,2644.4,2644.1,6.84206476]
[1748915595471,4.115,2644.4,2643.9,6.84206476]
[1748915595622,3.78197357,2644.2,2643.9,6.84206476]
[1748915596027,4.115,2644.1,2643.9,6.84206476]
[1748915596266,7.8968905,2644.2,2643.9,6.84206476]
[1748915596451,0.78968905,2644.1,2643.9,6.84206476]
[1748915597226,3.78237369,2643.9,2643.3,16.03388474]
[1748915597464,3.78223566,2644.0,2643.4,3.78296139]
[1748915597687,4.115,2643.9,2643.3,7.48076476]
[1748915598042,3.78275104,2643.6,2643.3,7.48076476]
[1748915598287,0.3782751,2643.5,2643.3,7.48076476]
[1748915598573,7.89772715,2643.6,2643.3,7.48076476]
[1748915598954,4.115,2643.6,2643.3,7.48076476]
[1748915599550,4.115,2643.6,2643.3,6.84206476]
[1748915600541,3.78286554,2643.5,2643.3,6.84206476]
[1748915600875,0.9447,2644.5,2643.5,0.6387]
[1748915601201,3.78173665,2644.3,2644.1,6.84206476]
[1748915601487,4.94945693,2644.3,2644.1,6.84206476]
[1748915601656,1.16772028,2644.3,2644.1,6.84206476]
[1748915601976,4.114,2644.4,2644.1,6.84206476]
[1748915602563,7.89571495,2644.4,2644.1,6.84206476]
[1748915602957,4.114,2644.4,2644.1,6.84206476]
[1748915603147,7.89566115,2644.4,2644.1,6.84206476]
[1748915603346,3.78129265,2644.6,2644.2,0.6387]
[1748915603681,4.114,2644.7,2644.4,6.84206476]
[1748915604765,7.89523041,2644.7,2644.4,6.84206476]
[1748915604969,4.114,2644.7,2644.4,6.84206476]
[1748915605661,3.78130661,2644.6,2644.4,0.09269946]
[1748915605856,7.8952053,2644.7,2644.4,0.09269946]
[1748915606061,8.68677572,2644.7,2644.4,0.09269946]
[1748915606362,3.78129017,2644.6,2644.1,6.84206476]
[1748915606857,3.78135566,2644.6,2644.1,6.84206476]
[1748915607058,8.686782,2644.7,2644.1,6.84206476]
[1748915607272,4.113,2644.6,2644.1,6.84206476]
[1748915607454,7.8943037,2644.6,2644.1,6.84206476]
[1748915607879,3.78117797,2644.7,2644.1,10.6239757]
[1748915608080,4.113,2644.6,2644.1,10.6239757]
[1748915608260,7.89432205,2644.6,2644.1,6.84206476]
[1748915608586,7.89434961,2644.6,2644.1,10.62406575]
[1748915609283,4.113,2644.6,2644.4,6.84206476]
[1748915609878,7.89430033,2644.6,2644.4,6.84206476]
[1748915610094,4.113,2644.6,2644.4,6.84206476]
[1748915610462,7.89432641,2644.6,2644.4,6.84206476]
[1748915610653,3.78143316,2644.5,2644.1,6.84206476]
[1748915610852,5.28053668,2644.6,2643.9,0.6707]
[1748915610853,6.20723668,2644.6,2643.9,7.51276476]
[1748915611053,3.78198302,2644.2,2643.9,7.51276476]
[1748915611379,4.113,2644.2,2643.9,6.51276476]
[1748915611578,7.89495651,2644.2,2643.9,6.51276476]
[1748915611752,3.7820353,2644.1,2643.9,6.51276476]
[1748915612090,4.113,2644.2,2643.9,6.51276476]
[1748915612272,3.78214826,2644.0,2643.9,6.51276476]
[1748915612778,3.78205486,2644.1,2643.9,6.51276476]
[1748915613908,3.78214826,2644.0,2643.9,6.51276476]
[1748915614111,8.68440623,2644.2,2643.9,6.51276476]
[1748915615096,3.78206419,2644.1,2643.9,6.51276476]
[1748915615273,4.112,2644.0,2643.9,6.51276476]
[1748915616290,3.912,2644.0,2643.9,6.51276476]
[1748915617325,3.78260327,2643.7,2643.2,6.84206476]
[1748915617478,3.78260327,2643.7,2643.5,6.84206476]
[1748915617479,4.112,2643.7,2643.5,6.84206476]
[1748915617678,4.112,2643.9,2643.5,6.84206476]
[1748915618486,0.9121,2644.3,2643.5,6.84206476]
[1748915618675,4.112,2644.2,2643.8,6.84206476]
[1748915618882,7.89390851,2644.2,2643.8,6.84206476]
[1748915619084,0.9501,2644.6,2643.8,6.84206476]
[1748915619286,0.9501,2644.6,2644.1,6.84206476]
[1748915619287,3.78165814,2644.4,2644.1,6.84206476]
[1748915619587,3.78172034,2644.3,2644.1,6.84206476]
[1748915619800,3.78186218,2644.2,2644.1,6.84206476]
[1748915619987,3.78186218,2644.2,2643.7,6.84206476]
[1748915619988,3.78216371,2644.0,2643.7,6.84206476]
[1748915620186,3.78207437,2644.1,2643.7,6.84206476]
[1748915621391,3.78200521,2644.1,2643.7,6.84206476]
[1748915621724,0.8961,2644.1,2643.7,6.84206476]
[1748915621885,3.78217345,2644.0,2643.7,6.84206476]
[1748915622081,0.8961,2644.1,2643.7,6.84206476]
[1748915622323,0.9227,2644.3,2643.7,6.84206476]
[1748915622523,4.111,2644.2,2643.7,6.84206476]
[1748915622728,0.9227,2644.8,2644.0,6.84206476]
[1748915622929,0.9227,2644.8,2644.3,6.84206476]
[1748915623140,0.02,2644.9,2644.3,10.62377637]
[1748915623343,0.02,2644.9,2644.6,6.84206476]
[1748915623489,0.02,2644.9,2644.7,3.78114026]
[1748915623689,0.02,2644.9,2644.6,10.62329549]
[1748915623906,0.02,2644.9,2644.8,3.78100423]
[1748915624100,0.9255,2645.8,2644.7,8.0]
[1748915624347,3.77920315,2646.1,2645.4,10.6221025]
[1748915624644,0.02,2646.9,2645.8,3.77957517]
[1748915624804,4.111,2646.7,2645.7,6.84206476]
[1748915625011,3.7783272,2646.7,2645.8,8.0]
[1748915625227,3.77908443,2646.2,2645.7,6.84206476]
[1748915625524,4.111,2646.3,2645.7,6.84206476]
[1748915625717,3.77967366,2645.8,2645.4,6.84206476]
[1748915625917,0.79106737,2645.7,2645.1,6.84206476]
[1748915626125,8.68083099,2645.7,2645.1,3.78056497]
[1748915626304,4.90106737,2645.7,2645.4,6.84206476]
[1748915626504,0.79106737,2645.7,2645.4,6.84206476]
[1748915626807,4.13,2645.9,2645.4,6.84206476]
[1748915627146,3.77958738,2645.8,2645.4,6.84206476]
[1748915627445,4.13,2645.9,2645.4,6.84206476]
[1748915627672,3.78018282,2645.4,2645.1,6.84206476]
[1748915627820,4.11,2645.4,2645.0,8.0]
[1748915628345,4.11,2645.5,2645.2,6.84206476]
[1748915628748,3.77970708,2645.8,2645.2,6.84206476]
[1748915628914,0.02,2645.9,2645.5,6.84206476]
[1748915629103,0.52896,2645.9,2645.5,6.84206476]
[1748915629303,0.52896,2645.9,2645.8,6.84206476]
[1748915629509,4.129,2645.9,2645.8,6.84206476]
[1748915629809,0.02,2645.9,2645.8,6.84206476]
[1748915631947,0.02,2645.9,2645.8,18.62163993]
[1748915632813,0.02,2645.9,2645.8,14.84206476]
[1748915633009,0.02,2645.9,2645.8,18.62163993]
[1748915633768,0.02,2645.9,2645.8,8.0]
[1748915634062,0.02,2645.9,2645.8,11.77957517]
[1748915634408,0.02,2645.9,2645.8,8.0]
[1748915634933,3.77988768,2645.6,2645.4,6.84206476]
[1748915635111,4.53583397,2645.6,2645.4,6.84206476]
[1748915635305,0.75594629,2645.6,2645.2,3.78042926]
[1748915635504,0.02,2645.9,2645.4,6.84206476]
[1748915636008,3.79943422,2645.9,2645.4,6.84206476]
[1748915636441,3.77983411,2645.7,2645.4,6.84206476]
[1748915636621,0.02,2645.9,2645.2,8.0]
[1748915636820,4.21219207,2645.9,2645.3,3.78028364]
[1748915637032,0.02,2645.9,2645.4,6.84206476]
[1748915637517,0.02,2645.9,2645.5,3.77999953]
[1748915637845,0.02,2645.9,2645.7,6.84206476]
[1748915639762,0.02,2645.9,2645.8,11.81737054]
[1748915640044,0.02,2645.9,2645.8,11.77957517]
[1748915640444,0.02,2645.9,2645.8,12.32957517]
[1748915640636,0.02,2645.9,2645.8,11.77957517]
[1748915641831,0.02,2645.9,2645.8,12.32957517]
[1748915642214,0.9035,2647.4,2646.7,3.77826122]
[1748915642553,0.02,2647.9,2646.9,8.55]
[1748915642728,0.02,2647.9,2647.3,6.84206476]
[1748915642915,3.77709071,2647.6,2647.1,8.0]
[1748915643110,0.9793,2647.7,2647.1,8.0]
[1748915643341,0.9793,2647.7,2647.1,11.77762313]
[1748915643650,0.02,2647.9,2647.3,6.84206476]
[1748915643957,0.02,2647.9,2647.7,8.0]
[1748915644812,0.02,2647.9,2646.8,4.32808856]
[1748915644813,0.8918,2647.8,2646.5,0.3775]
[1748915645013,0.8918,2647.0,2646.1,3.77912012]
[1748915645264,4.9968,2647.0,2646.2,11.77899808]
[1748915645554,4.9968,2647.0,2646.2,3.77895441]
[1748915645849,5.87425527,2647.0,2646.3,6.84206476]
[1748915646026,3.77814784,2646.8,2646.3,6.84206476]
[1748915646454,9.65213997,2647.0,2646.3,6.84206476]
[1748915646455,3.77847526,2646.6,2646.4,8.0]
[1748915646664,3.77833076,2646.7,2646.4,8.0]
[1748915646861,3.77817548,2646.8,2646.4,8.0]
[1748915647050,3.77817033,2646.8,2646.4,8.0]
[1748915647265,3.77806108,2646.9,2646.4,8.0]
[1748915647434,5.87425527,2647.0,2646.4,8.0]
[1748915647960,3.77816658,2646.8,2646.4,8.0]
[1748915648169,3.77829076,2646.7,2646.4,8.0]
[1748915648354,3.77823991,2646.8,2646.4,8.0]
[1748915648668,0.96519794,2646.9,2646.4,8.0]
[1748915648866,3.77805329,2646.9,2646.4,8.0]
[1748915649163,4.66976308,2647.0,2646.7,8.0]
[1748915649370,0.9038,2647.8,2647.0,8.0]
[1748915649564,0.9038,2647.8,2647.3,6.84206476]
[1748915649729,5.0088,2647.8,2647.0,6.84206476]
[1748915650069,5.0088,2647.8,2646.8,8.0]
[1748915650070,3.77750972,2647.3,2646.8,8.0]
[1748915650283,3.77762568,2647.2,2646.8,8.0]
[1748915650432,7.881314,2647.4,2646.8,8.0]
[1748915650636,0.9353,2647.3,2646.8,8.0]
[1748915650833,3.7775763,2647.2,2646.6,0.8]
[1748915651173,3.7779865,2647.0,2646.6,0.8]
[1748915652072,3.77824921,2646.8,2646.6,0.8]
[1748915652453,3.77806001,2646.9,2646.6,0.8]
[1748915652655,3.77786463,2647.0,2646.6,0.8]
[1748915653071,3.77800953,2646.9,2646.6,0.8]
[1748915653277,3.77796485,2647.0,2646.6,0.8]
[1748915653643,3.77801714,2646.9,2646.6,0.8]
[1748915653974,3.77808656,2646.9,2646.6,0.8]
[1748915654207,7.88182332,2647.1,2646.6,0.8]
[1748915654405,4.71277082,2647.3,2646.6,7.46699523]
[1748915654406,0.9353,2647.3,2646.6,7.46699523]
[1748915654709,0.8892,2647.6,2646.7,8.0]
[1748915654893,0.9092,2647.9,2646.8,12.77]
[1748915655086,4.68588303,2647.9,2647.3,3.77735157]
[1748915655295,1.27661966,2647.9,2647.4,0.03776989]
[1748915655485,0.02,2647.9,2647.3,3.77738681]
[1748915655675,0.02,2647.9,2647.4,8.0]
[1748915655676,3.79667028,2647.9,2647.4,8.0]
[1748915656310,0.02,2647.9,2647.4,3.77726252]
[1748915656495,0.02,2647.9,2647.3,8.0]
[1748915656816,0.02,2647.9,2647.4,3.7772784]
[1748915657198,3.79666767,2647.9,2647.3,3.77737081]
[1748915657393,4.55387614,2647.9,2647.2,8.0]
[1748915657571,3.77680041,2647.8,2647.2,11.77754919]
[1748915657908,4.55393803,2647.9,2647.2,8.0]
[1748915658078,4.55393821,2647.9,2647.2,8.0]
[1748915658402,8.65693821,2647.9,2647.3,3.77743033]
[1748915658607,4.55393821,2647.9,2647.3,3.77743033]
[1748915658786,4.123,2647.9,2647.3,11.77732582]
[1748915658986,7.89967639,2647.9,2647.3,11.77732582]
[1748915659374,0.02,2647.9,2647.3,8.0]
[1748915659576,3.79659552,2647.9,2647.3,11.77734783]
[1748915660111,3.79659552,2647.9,2647.6,8.0]
[1748915660112,0.02,2647.9,2647.6,8.0]
[1748915660312,0.02,2647.9,2647.5,8.0]
[1748915661312,0.02,2647.9,2647.2,11.77746358]
[1748915661614,0.02,2647.9,2647.5,3.77713128]
[1748915661830,0.02,2647.9,2647.5,8.0]
[1748915662385,0.02,2647.9,2647.4,8.0]
[1748915662587,3.79668144,2647.9,2647.4,8.0]
[1748915662786,0.02,2647.9,2647.2,8.0]
[1748915662987,3.79666954,2647.9,2647.4,8.0]
[1748915663219,0.02,2647.9,2647.4,3.77726471]
[1748915664327,0.02,2647.9,2647.1,8.0]
[1748915664630,0.02,2647.9,2647.4,8.0]
[1748915664787,0.02,2647.9,2647.5,3.77714825]
[1748915664984,0.02,2647.9,2647.8,3.77672029]
[1748915665199,0.02,2647.9,2647.7,11.77678775]
[1748915665403,0.02,2647.9,2647.8,3.77672029]
[1748915665608,0.02,2647.9,2647.7,11.77679631]
[1748915666237,0.02,2647.9,2647.6,11.77696387]
[1748915666534,0.02,2647.9,2647.7,3.77683334]
[1748915666695,0.02,2647.9,2647.8,11.77672029]
[1748915666894,4.101,2648.3,2647.9,8.0]
[1748915667729,5.0201,2648.5,2648.1,8.0]
[1748915667935,3.77590105,2648.4,2647.9,8.0]
[1748915668302,3.77603439,2648.3,2647.9,8.0]
[1748915668502,3.77610319,2648.3,2647.7,3.77684963]
[1748915668823,3.77624049,2648.2,2647.6,11.77695375]
[1748915669033,0.9571,2648.0,2647.0,0.3776]
[1748915669239,0.9571,2648.0,2647.5,3.77701561]
[1748915669403,0.9571,2648.0,2647.2,1.5246]
[1748915669740,0.9571,2648.0,2647.5,8.0]
[1748915669914,0.9571,2648.0,2647.5,11.77706506]
[1748915670236,3.77661165,2647.9,2647.4,8.0]
[1748915670634,0.9831,2648.7,2647.7,8.0]
[1748915670929,3.77609648,2648.3,2647.5,8.0]
[1748915671129,1.2178366,2648.6,2647.5,8.0]
[1748915671130,4.75926115,2648.2,2647.5,3.77704881]
[1748915671848,0.9831,2648.2,2647.7,11.77681896]
[1748915672052,3.77633421,2648.1,2647.5,3.77712013]
[1748915672849,3.77633421,2648.1,2647.7,0.8]
[1748915673041,4.75936411,2648.2,2647.7,8.8]
[1748915673243,0.9831,2648.2,2647.8,3.77657887]
[1748915673534,0.9831,2648.2,2647.9,8.0]
[1748915673737,0.9175,2648.6,2648.0,3.77630651]
[1748915673938,0.9175,2648.6,2647.9,3.77657458]
[1748915674140,5.0175,2648.6,2647.8,3.77658538]
[1748915674346,3.79516794,2648.9,2648.2,3.77613622]